bitfinex-derivatives/quotes_ETHF0:USTF0_20240829
["timestamp","ask_amount","ask_price","bid_price","bid_amount"]
[1724957888465,8.30442467,2520.5,2520.4,41.19666]
[1724957888870,11.51222467,2520.5,2520.3,0.39667]
[1724957889073,7.54502467,2520.5,2520.4,0.39666]
[1724957889373,4.33722467,2520.5,2520.4,41.19666]
[1724957889575,0.00595061,2520.5,2520.4,45.16386]
[1724957889776,0.00595061,2520.5,2520.4,41.19666]
[1724957890980,8.58697801,2520.5,2520.2,0.39668]
[1724957891276,7.82757801,2520.5,2520.2,41.19669]
[1724957891483,0.39666,2520.4,2520.1,0.3967]
[1724957891879,0.39666,2520.4,2519.6,4.19974]
[1724957891880,4.46498869,2520.3,2519.7,40.8]
[1724957892085,4.46498869,2520.3,2518.8,0.19527165]
[1724957892086,3.2078,2519.9,2519.1,0.99214]
[1724957892378,3.2078,2519.9,2519.3,0.39682]
[1724957892578,4.84769174,2519.8,2518.8,4.57085168]
[1724957892784,0.39678,2519.7,2519.4,0.39681]
[1724957892980,0.39678,2519.7,2518.8,40.80085168]
[1724957893186,4.57,2519.5,2518.8,40.80085168]
[1724957893482,7.63494304,2519.6,2518.8,0.00085168]
[1724957893483,3.2078,2519.0,2518.8,0.00085168]
[1724957893888,7.1774,2519.0,2518.8,0.00085168]
[1724957894081,4.42714304,2518.9,2518.8,0.00085168]
[1724957894277,4.42714304,2518.9,2518.8,0.39776168]
[1724957894483,0.00595061,2519.2,2519.1,0.39686]
[1724957895092,0.00595061,2519.2,2519.1,4.36646]
[1724957896375,6.1e-07,2519.2,2519.1,15.92862]
[1724957897674,6.1e-07,2519.2,2519.1,16.92078]
[1724957898177,3.2078,2520.2,2520.1,0.39671]
[1724957898888,3.2078,2520.8,2520.6,0.39662]
[1724957899084,3.6044,2520.8,2520.2,0.39668]
[1724957899392,4.5567174,2520.7,2520.2,0.40263061]
[1724957899581,4.5567174,2520.7,2520.3,0.39667]
[1724957899781,8.5239174,2520.7,2520.3,0.39667]
[1724957900187,4.5567174,2520.7,2520.4,0.39666]
[1724957900377,0.00595061,2520.8,2520.7,0.39661]
[1724957900582,0.39661,2520.7,2520.2,0.40263061]
[1724957900789,3.2078,2520.6,2520.2,0.40263061]
[1724957901089,3.92875077,2520.5,2520.2,0.00595061]
[1724957901292,3.2078,2520.3,2519.6,40.8]
[1724957901488,3.2078,2520.0,2519.6,40.8]
[1724957901784,3.2078,2520.0,2519.8,0.39675]
[1724957901982,4.19775843,2519.9,2519.8,0.39675]
[1724957902378,3.2078,2520.0,2519.9,0.39674]
[1724957902582,2.2185,2520.2,2520.1,0.39671]
[1724957903383,2.235,2520.4,2520.3,0.39667]
[1724957903788,3.2078,2520.5,2520.4,0.39666]
[1724957903988,3.2078,2520.5,2519.7,3.2078]
[1724957903989,3.2078,2520.5,2520.3,0.39667]
[1724957904181,3.2078,2520.5,2520.2,0.39668]
[1724957904381,3.2078,2520.5,2519.7,3.2078]
[1724957904583,3.2078,2520.5,2520.4,0.39666]
[1724957904983,8.17831008,2520.5,2520.4,0.39666]
[1724957905183,7.175,2520.5,2520.4,0.39666]
[1724957905583,3.2078,2520.5,2520.4,0.39666]
[1724957905788,4.21111008,2520.5,2520.4,0.39666]
[1724957905984,3.2078,2520.5,2520.4,0.39666]
[1724957906185,7.175,2520.5,2520.4,0.39666]
[1724957906491,3.2078,2520.5,2520.4,0.39666]
[1724957906794,1.00331008,2520.6,2520.5,0.39664]
[1724957907302,3.9672,2520.6,2519.5,4.19979]
[1724957907591,3.9672,2520.6,2520.3,40.8]
[1724957907592,4.21123546,2520.5,2520.3,40.8]
[1724957907992,6.3996212,2520.4,2520.3,40.8]
[1724957908202,6.3996212,2520.4,2519.5,3.2078]
[1724957908490,3.2078,2520.2,2519.5,3.2078]
[1724957908691,3.2078,2520.2,2519.9,0.39673]
[1724957908892,3.6045,2520.2,2519.9,0.39673]
[1724957909196,3.2078,2520.2,2520.1,0.39671]
[1724957909894,14.17923546,2520.2,2519.1,3.2078]
[1724957910107,3.2078,2519.6,2519.3,0.39683]
[1724957910288,1.00289471,2519.7,2518.9,0.99224]
[1724957910488,0.00595061,2519.6,2519.5,0.3968]
[1724957910885,0.00595061,2519.6,2519.5,4.3656]
[1724957911185,0.00595061,2519.6,2519.5,5.35761]
[1724957911687,6.1e-07,2519.6,2519.5,11.35761]
[1724957912195,6.1e-07,2519.6,2519.5,12.34962]
[1724957912524,3.2078,2520.5,2520.4,0.39666]
[1724957912795,1.00289471,2520.8,2520.7,0.39661]
[1724957912987,5.57669471,2520.9,2520.8,0.3966]
[1724957913188,5.57669471,2520.9,2520.7,0.3966]
[1724957913587,4.5738,2520.9,2520.8,0.3966]
[1724957913790,5.57751783,2520.9,2520.8,0.3966]
[1724957914600,10.04534207,2520.9,2520.8,0.3966]
[1724957914904,10.04534207,2520.9,2520.7,0.3966]
[1724957915099,1.0043137,2520.8,2520.7,0.3966]
[1724957915306,5.5781137,2520.9,2520.8,0.3966]
[1724957915595,4.5846703,2520.8,2520.5,0.00595061]
[1724957915802,1.00479497,2520.7,2520.6,0.39663]
[1724957917105,1.50719245,2520.8,2520.7,0.39661]
[1724957918403,4.35197093,2520.9,2520.8,0.3966]
[1724957918908,5.21467093,2521.0,2520.9,0.39658]
[1724957919200,1.00571751,2521.0,2520.9,0.39658]
[1724957919407,3.84763022,2521.1,2521.0,0.39656]
[1724957919602,2.33915061,2521.1,2521.0,0.39656]
[1724957919799,3.84763022,2521.1,2521.0,0.39656]
[1724957921008,7.81403022,2521.1,2521.0,0.39656]
[1724957921197,7.81403022,2521.1,2520.9,0.39657]
[1724957921397,1.00523788,2521.0,2520.7,40.8]
[1724957921611,1.50847961,2521.0,2520.9,0.39658]
[1724957922093,5.47487961,2521.0,2520.9,0.39658]
[1724957922296,1.00512865,2521.0,2520.8,0.99147]
[1724957922502,3.34418049,2521.1,2521.0,0.39656]
[1724957922706,3.84763022,2521.1,2521.0,0.39656]
[1724957922910,1.01087802,2521.1,2521.0,1.38798]
[1724957923103,0.00595061,2521.1,2521.0,5.35438]
[1724957923303,0.00595061,2521.1,2521.0,4.36296]
[1724957923500,0.00595061,2521.1,2520.7,3.2078]
[1724957923803,1.40149741,2521.0,2520.6,0.39662]
[1724957924001,3.34882741,2520.9,2520.7,0.39661]
[1724957924417,0.39662,2520.7,2520.5,40.80595061]
[1724957924598,1.00367828,2520.6,2520.5,0.00595061]
[1724957924798,1.00367828,2520.7,2520.5,0.00595061]
[1724957924998,1.00367828,2520.7,2520.6,0.39663]
[1724957925507,1.00367828,2521.0,2520.9,0.39658]
[1724957925808,0.00595061,2521.1,2521.0,0.39656]
[1724957929204,0.00595061,2521.1,2521.0,4.36296]
[1724957929905,0.00595061,2521.1,2521.0,5.35438]
[1724957930111,0.00595061,2521.1,2521.0,0.39656]
[1724957930816,0.00595061,2521.1,2521.0,4.36296]
[1724957931113,0.00595061,2521.1,2521.0,5.35438]
[1724957931501,0.00595061,2521.1,2521.0,4.36296]
[1724957931909,0.00595061,2521.1,2521.0,5.35438]
[1724957932307,0.00595061,2521.1,2521.0,4.36296]
[1724957932607,0.00595061,2521.1,2521.0,5.35438]
[1724957933410,1.00367828,2521.8,2521.6,0.39646]
[1724957933607,3.70697961,2521.8,2521.7,0.39645]
[1724957933912,3.2022927,2521.8,2521.7,0.39645]
[1724957935512,7.67257961,2521.8,2521.7,0.39645]
[1724957935815,7.16799807,2521.8,2521.7,0.39645]
[1724957935999,7.16799807,2521.8,2521.6,0.39646]
[1724957936205,1.00391286,2521.7,2521.6,0.39646]
[1724957936607,2.1985,2521.8,2521.3,40.8]
[1724957936608,3.20241286,2521.8,2521.7,0.39645]
[1724957937009,2.1985,2521.8,2521.7,0.39645]
[1724957937310,2.1454,2521.9,2521.8,0.39644]
[1724957937517,4.21766347,2522.0,2521.9,0.39642]
[1724957937708,3.21375061,2522.0,2521.9,0.39642]
[1724957938718,3.21375061,2522.0,2521.9,1.38748]
[1724957938905,0.00595061,2522.0,2521.9,5.35228]
[1724957939104,6.1e-07,2522.0,2521.9,12.34334]
[1724957939315,6.1e-07,2522.0,2521.9,5.35228]
[1724957939703,6.1e-07,2522.0,2521.9,0.39642]
[1724957940203,6.1e-07,2522.0,2521.9,5.35228]
[1724957940512,6.1e-07,2522.0,2521.9,4.36122]
[1724957941103,6.1e-07,2522.0,2521.9,5.35228]
[1724957943013,6.1e-07,2522.0,2521.9,4.36122]
[1724957943211,6.1e-07,2522.0,2521.9,0.39642]
[1724957943412,6.1e-07,2522.0,2521.8,3.60423]
[1724957943614,2.33090061,2522.0,2521.9,0.39642]
[1724957943819,2.33090061,2522.0,2521.8,3.2078]
[1724957944006,2.33090061,2522.0,2521.9,0.39642]
[1724957944211,2.33090061,2522.0,2521.8,3.2078]
[1724957944413,2.33090061,2522.0,2521.8,3.60423]
[1724957944706,2.72732061,2522.0,2521.8,3.2078]
[1724957944909,2.33090061,2522.0,2521.9,0.39642]
[1724957945305,6.1e-07,2522.0,2521.9,0.39642]
[1724957945617,6.1e-07,2522.0,2521.9,4.36122]
[1724957946115,6.1e-07,2522.0,2521.9,0.39642]
[1724957946314,6.1e-07,2522.0,2521.9,4.36122]
[1724957946517,6.1e-07,2522.0,2521.9,11.35228]
[1724957947316,6.1e-07,2522.0,2521.9,12.34334]
[1724957947523,6.1e-07,2522.0,2521.9,14.54024]
[1724957947708,6.1e-07,2522.0,2521.9,7.54918]
[1724957947914,6.1e-07,2522.0,2521.9,54.34918]
[1724957948320,6.1e-07,2522.0,2521.9,57.32237]
[1724957948621,6.1e-07,2522.0,2521.9,55.34024]
[1724957950516,6.1e-07,2522.0,2521.9,57.32237]
[1724957952125,5.4432,2523.1,2523.0,0.39625]
[1724957953118,2.2354,2523.1,2523.0,0.39625]
[1724957954325,0.39627,2522.9,2522.8,0.00595061]
[1724957954627,0.39626,2523.0,2522.8,0.40223061]
[1724957955419,2.2354,2523.1,2522.8,0.40223061]
[1724957956124,2.2354,2523.1,2523.0,0.39625]
[1724957956320,0.00595061,2523.3,2523.2,0.39622]
[1724957956521,6.58135061,2523.3,2523.1,0.39622]
[1724957956723,0.39622,2523.2,2522.8,0.00595061]
[1724957957024,2.22195061,2523.3,2523.1,0.39623]
[1724957957324,0.39622,2523.2,2523.1,0.39623]
[1724957957622,0.39624,2523.1,2522.9,0.39625]
[1724957958022,2.22195061,2523.3,2522.8,0.00595061]
[1724957958023,2.22195061,2523.3,2523.1,0.39623]
[1724957958223,2.22195061,2523.3,2522.8,0.40223061]
[1724957958224,0.39626,2523.0,2522.8,0.40223061]
[1724957958419,2.1392,2522.9,2522.8,0.40223061]
[1724957960521,2.22195061,2523.3,2523.2,0.39622]
[1724957961127,0.39623,2523.2,2522.8,0.00595061]
[1724957961326,2.61816061,2523.3,2523.1,0.39623]
[1724957961727,2.22195061,2523.3,2523.2,0.39622]
[1724957962426,0.39622,2523.2,2523.1,0.39623]
[1724957962633,0.39625,2523.1,2522.9,0.39626]
[1724957962933,2.61816061,2523.3,2522.8,0.00595061]
[1724957963124,2.61816061,2523.3,2523.2,0.39622]
[1724957963331,2.22195061,2523.3,2523.2,0.39622]
[1724957963529,2.22195061,2523.3,2523.2,5.34997]
[1724957963530,0.00595061,2523.3,2523.2,5.34997]
[1724957963833,2.2353,2523.7,2523.6,0.39616]
[1724957964227,2.3028,2524.1,2523.5,40.8]
[1724957964530,4.5381,2524.1,2523.6,4.57]
[1724957964736,4.5381,2524.1,2523.9,0.3961]
[1724957965333,4.5381,2524.1,2523.6,4.57]
[1724957965532,4.5381,2524.1,2523.4,4.19825]
[1724957965533,3.2078,2523.9,2523.1,7.7778]
[1724957965731,0.39613,2523.8,2523.5,0.39616]
[1724957965941,0.39614,2523.7,2523.5,0.39616]
[1724957966331,3.9624,2523.7,2523.3,3.42]
[1724957966529,4.29309426,2523.6,2523.1,3.2078]
[1724957966839,0.39617,2523.6,2523.3,0.3962]
[1724957967035,0.39619,2523.4,2523.1,0.39622]
[1724957967342,4.5699,2523.3,2523.2,0.39622]
[1724957969434,4.5699,2523.3,2523.1,0.39622]
[1724957969633,4.5699,2523.3,2523.2,0.39622]
[1724957970233,4.5699,2523.3,2523.0,3.42]
[1724957970436,7.7777,2523.3,2523.0,3.81624]
[1724957970642,0.39626,2523.0,2522.8,0.00595061]
[1724957970842,0.39626,2523.0,2522.8,0.40223061]
[1724957971631,4.48931754,2523.2,2522.8,0.40223061]
[1724957971632,0.39623,2523.1,2522.8,0.40223061]
[1724957971838,0.39625,2523.0,2522.8,0.40223061]
[1724957972035,5.47987754,2523.2,2522.8,0.00595061]
[1724957972234,4.26586687,2522.9,2522.1,3.42]
[1724957972546,3.2078,2522.7,2522.6,0.39631]
[1724957972735,3.2078,2522.7,2522.3,44.22]
[1724957973036,2.1735,2522.6,2522.5,0.39631]
[1724957973432,2.1735,2522.6,2522.5,0.39633]
[1724957973738,16.68177262,2522.6,2522.3,0.00595061]
[1724957974036,3.2078,2522.4,2521.7,40.8]
[1724957974228,3.2078,2521.9,2521.8,0.39644]
[1724957974428,0.39644,2521.8,2521.5,0.39648]
[1724957974737,3.2078,2521.6,2521.5,0.39649]
[1724957975149,7.1734,2521.6,2521.5,0.39649]
[1724957975635,7.1734,2521.6,2521.4,0.3965]
[1724957975940,3.2078,2521.6,2521.3,0.00595061]
[1724957976242,3.2078,2521.6,2521.4,0.39649]
[1724957977032,3.2078,2521.6,2520.9,0.39657]
[1724957977033,3.9656,2521.5,2520.9,0.39657]
[1724957977237,3.2078,2521.0,2520.2,4.57]
[1724957977531,3.2078,2521.0,2520.4,4.57]
[1724957977839,3.2078,2521.0,2520.7,0.3966]
[1724957978042,2.3073,2520.9,2520.6,0.39662]
[1724957978335,2.3073,2520.9,2520.6,0.00595061]
[1724957978737,3.2078,2520.7,2520.6,0.00595061]
[1724957979136,7.175,2520.7,2520.6,0.00595061]
[1724957979334,7.57161,2520.7,2520.6,0.00595061]
[1724957979537,7.175,2520.7,2520.6,0.00595061]
[1724957979947,7.57161,2520.7,2520.6,0.00595061]
[1724957980540,7.57161,2520.7,2520.0,0.39671]
[1724957980541,0.39664,2520.6,2520.0,0.39671]
[1724957980738,3.2078,2520.4,2520.0,0.39671]
[1724957981350,3.2078,2520.4,2520.1,40.8]
[1724957982047,0.39668,2520.3,2519.8,0.39674]
[1724957982244,3.2078,2520.0,2519.9,0.39674]
[1724957982549,3.2078,2520.0,2519.7,0.39676]
[1724957982846,0.00595061,2520.1,2520.0,0.39672]
[1724957983541,0.00595061,2520.1,2519.9,0.39673]
[1724957983740,2.23175061,2520.1,2519.9,0.39673]
[1724957984758,2.23175061,2520.1,2520.0,0.39672]
[1724957985056,0.00595061,2520.1,2520.0,0.39672]
[1724957985345,0.00595061,2520.1,2520.0,10.36472]
[1724957986642,0.00595061,2520.1,2520.0,4.36472]
[1724957986841,3.2078,2520.5,2520.4,0.39666]
[1724957987350,3.2078,2520.8,2520.4,40.8]
[1724957987544,3.2078,2520.5,2520.4,41.19666]
[1724957987745,3.2078,2520.8,2520.5,0.39663]
[1724957987946,3.2078,2520.8,2520.7,0.39661]
[1724957988146,3.2078,2520.8,2520.4,40.80595061]
[1724957988342,3.2078,2520.8,2520.6,0.39662]
[1724957989051,3.2078,2520.8,2520.4,40.80595061]
[1724957989448,3.2078,2520.8,2520.6,0.39662]
[1724957989652,3.2078,2520.8,2520.7,0.39661]
[1724957991159,3.2078,2520.8,2520.7,1.38815]
[1724957991655,0.00595061,2520.9,2520.8,0.3966]
[1724957992050,0.00595061,2520.9,2520.7,0.3966]
[1724957992250,3.2078,2520.8,2520.7,0.3966]
[1724957992647,3.2078,2520.8,2520.6,0.39662]
[1724957992842,3.2078,2520.8,2520.7,0.39661]
[1724957992843,5.5366,2520.8,2520.7,0.39661]
[1724957993855,5.5366,2520.8,2520.6,0.39662]
[1724957994054,5.9332,2520.8,2520.5,0.39664]
[1724957994255,5.9332,2520.8,2520.4,40.80595061]
[1724957994256,5.5366,2520.8,2520.4,40.80595061]
[1724957994556,5.5366,2520.8,2520.7,0.39661]
[1724957995155,3.2078,2520.8,2520.7,0.39661]
[1724957995660,0.00595061,2520.9,2520.8,0.3966]
[1724957995959,0.00595061,2520.9,2520.8,4.3638]
[1724957996855,0.00595061,2520.9,2520.8,5.3553]
[1724957997359,6.1e-07,2520.9,2520.8,16.9168]
[1724957998662,6.1e-07,2520.9,2520.8,15.9253]
[1724957998956,6.1e-07,2520.9,2520.8,4.3638]
[1724957999159,6.1e-07,2520.9,2520.8,5.3553]
[1724958000154,6.1e-07,2520.9,2520.8,10.9168]
[1724958000355,6.1e-07,2520.9,2520.8,16.9168]
[1724958000556,6.1e-07,2520.9,2520.8,10.3638]
[1724958000864,6.1e-07,2520.9,2520.8,0.3966]
[1724958002067,6.1e-07,2520.9,2520.8,4.3638]
[1724958002248,6.1e-07,2520.9,2520.8,12.3468]
[1724958002649,3.2078,2522.1,2522.0,0.39641]
[1724958002854,3.2078,2522.5,2522.0,4.57]
[1724958003055,3.2078,2522.5,2522.1,40.8]
[1724958003354,3.2078,2522.2,2522.1,41.19638]
[1724958003672,6.82614881,2522.4,2522.1,40.8]
[1724958003857,3.2078,2522.2,2522.1,40.8]
[1724958004167,2.33005061,2522.4,2522.3,0.39636]
[1724958004367,2.33005061,2522.4,2522.1,40.8]
[1724958004662,2.33005061,2522.4,2522.3,0.39636]
[1724958005251,0.00595061,2522.4,2522.3,0.39636]
[1724958005963,0.00595061,2522.4,2522.3,4.96636]
[1724958005964,6.1e-07,2522.4,2522.3,4.96636]
[1724958006264,2.18750947,2523.1,2522.3,8.534]
[1724958006560,2.14341776,2523.1,2522.3,4.57]
[1724958006766,1.8407,2523.1,2522.3,4.57]
[1724958006965,1.8407,2523.1,2523.0,0.39625]
[1724958007667,1.8407,2523.1,2522.4,3.2078]
[1724958007668,5.0485,2523.1,2522.5,4.57]
[1724958008161,5.0485,2523.1,2522.4,3.2078]
[1724958008162,0.00595061,2523.3,2522.8,4.57]
[1724958008367,0.00595061,2523.3,2522.9,0.39625]
[1724958008555,3.2078,2523.0,2522.5,4.57]
[1724958008751,3.2078,2523.0,2522.7,0.39629]
[1724958008951,3.2078,2523.0,2522.5,4.57]
[1724958009160,3.2078,2523.0,2522.9,0.39627]
[1724958009462,0.00595061,2523.3,2523.2,0.39622]
[1724958010661,0.39624,2523.1,2522.3,3.2078]
[1724958010864,3.2078,2522.9,2522.6,0.3963]
[1724958011062,3.2078,2522.9,2522.7,0.39629]
[1724958011267,3.2078,2522.9,2522.4,4.57]
[1724958011566,0.00595061,2523.3,2522.7,4.57]
[1724958012267,0.00595061,2523.3,2523.2,4.96622]
[1724958012857,0.00595061,2523.3,2523.2,8.92942]
[1724958013459,0.00595061,2523.3,2523.2,49.72942]
[1724958013761,6.1e-07,2523.3,2523.2,59.92777]
[1724958013965,6.1e-07,2523.3,2523.2,58.93722]
[1724958014166,6.1e-07,2523.3,2523.2,49.72942]
[1724958014461,6.1e-07,2523.3,2523.0,2.1654]
[1724958014462,6.1e-07,2523.3,2523.0,4.57]
[1724958014661,6.1e-07,2523.3,2522.7,4.57]
[1724958014865,2.34290061,2523.3,2522.7,4.57]
[1724958015670,3.60404,2523.1,2522.6,0.3963]
[1724958015867,2.34290061,2523.3,2522.0,6.5218]
[1724958015868,2.34290061,2523.3,2523.0,4.57]
[1724958016068,2.34290061,2523.3,2523.2,0.39622]
[1724958016963,6.1e-07,2523.3,2523.2,0.39622]
[1724958017160,3.2078,2523.8,2523.7,0.39614]
[1724958017363,6.6875,2524.5,2524.4,0.39603]
[1724958017575,4.3584,2524.5,2524.4,0.39603]
[1724958018072,0.3968,2524.5,2524.4,0.39603]
[1724958018570,0.00595061,2524.7,2524.2,45.37595061]
[1724958018965,3.2078,2524.4,2524.2,40.80595061]
[1724958019165,2.1704,2524.3,2523.1,6.7955]
[1724958019367,3.2078,2523.8,2523.1,4.57]
[1724958019570,3.2078,2523.8,2523.6,0.39615]
[1724958020565,3.2078,2523.8,2523.4,0.00595061]
[1724958020566,8.30203851,2523.7,2523.4,0.00595061]
[1724958020772,3.2078,2523.5,2523.4,0.00595061]
[1724958020965,4.33963851,2523.7,2523.4,0.00595061]
[1724958021170,3.2078,2523.8,2523.4,0.00595061]
[1724958021475,5.3782,2524.3,2523.4,0.00595061]
[1724958021866,4.17207541,2524.1,2523.8,0.39611]
[1724958022176,3.2078,2524.3,2524.0,0.39608]
[1724958022366,3.2078,2524.3,2523.4,0.40213061]
[1724958022567,3.2078,2524.0,2523.4,0.00595061]
[1724958022773,3.2078,2523.6,2523.4,0.00595061]
[1724958023074,3.2078,2523.6,2523.4,0.40214061]
[1724958023275,3.2078,2523.6,2523.4,0.00595061]
[1724958023467,3.9624,2523.5,2523.4,0.00595061]
[1724958023667,4.38970906,2523.5,2523.4,0.00595061]
[1724958023973,3.9632,2523.5,2523.4,0.00595061]
[1724958024271,5.74991,2523.9,2523.4,0.00595061]
[1724958024572,3.2078,2523.5,2523.4,0.00595061]
[1724958024964,13.171,2523.5,2522.4,7.7778]
[1724958025165,13.171,2523.5,2522.9,0.39626]
[1724958025166,3.2078,2523.2,2522.9,0.39626]
[1724958025369,2.2717,2523.1,2522.9,0.39626]
[1724958025673,2.2717,2523.1,2522.4,7.7778]
[1724958025674,2.2717,2523.1,2522.4,44.0078]
[1724958025873,0.39635,2522.4,2521.6,3.2078]
[1724958026080,3.2078,2522.5,2522.0,0.3964]
[1724958026081,4.53025061,2522.3,2522.0,0.3964]
[1724958026370,0.39641,2522.0,2521.7,0.00595061]
[1724958026575,0.39644,2521.8,2521.7,0.00595061]
[1724958026968,0.39644,2521.8,2521.1,0.39655]
[1724958026969,9.9656,2521.8,2521.1,0.39655]
[1724958027164,3.2078,2521.6,2521.1,0.39655]
[1724958027584,4.27119072,2521.5,2521.0,4.57]
[1724958027771,2.1755,2521.6,2521.1,40.8]
[1724958027965,2.1755,2521.6,2521.1,40.80595061]
[1724958028170,4.53250686,2521.5,2521.4,0.3965]
[1724958028370,4.53250686,2521.5,2521.1,41.20249061]
[1724958028570,6.64400686,2521.5,2521.2,0.39653]
[1724958028869,6.64400686,2521.5,2521.4,0.3965]
[1724958029388,12.64400686,2521.5,2521.1,40.80595061]
[1724958029675,9.85180686,2521.5,2521.1,0.00595061]
[1724958029877,5.3193,2521.5,2521.1,0.00595061]
[1724958030070,5.3193,2521.5,2521.4,0.3965]
[1724958030276,5.3193,2521.5,2521.1,0.00595061]
[1724958030471,3.9664,2521.4,2521.1,0.00595061]
[1724958030775,3.9664,2521.4,2520.0,2.1417]
[1724958030776,3.2078,2521.2,2520.0,2.1417]
[1724958031079,3.2078,2521.2,2519.7,0.19412338]
[1724958031080,3.2078,2520.2,2519.7,0.19412338]
[1724958031375,0.39668,2520.3,2519.9,40.8]
[1724958031578,3.2078,2520.0,2519.9,40.8]
[1724958031875,2.1118,2520.2,2519.9,40.8]
[1724958031876,4.48976855,2520.2,2519.9,40.8]
[1724958032182,4.48976855,2520.2,2520.1,0.39671]
[1724958032183,0.00595061,2520.2,2520.1,0.39671]
[1724958032368,0.00595061,2520.2,2520.1,6.39671]
[1724958032369,6.1e-07,2520.2,2520.1,6.39671]
[1724958032567,6.1e-07,2520.2,2520.1,10.36471]
[1724958032768,6.1e-07,2520.2,2520.1,11.35648]
[1724958032966,6.1e-07,2520.2,2520.1,4.36471]
[1724958033169,6.1e-07,2520.2,2520.1,10.36471]
[1724958033369,6.1e-07,2520.2,2520.1,12.34825]
[1724958033567,6.1e-07,2520.2,2520.1,11.35648]
[1724958033983,6.1e-07,2520.2,2520.1,52.15648]
[1724958034474,6.1e-07,2520.2,2520.1,53.54585]
[1724958034677,6.1e-07,2520.2,2520.1,52.55408]
[1724958035383,6.1e-07,2520.2,2520.1,41.19671]
[1724958035584,6.1e-07,2520.2,2520.1,40.8]
[1724958035585,3.96800061,2520.2,2520.1,40.8]
[1724958035883,6.1e-07,2520.2,2520.1,41.19671]
[1724958036071,6.1e-07,2520.2,2520.1,54.37251]
[1724958036474,6.1e-07,2520.2,2520.1,55.36428]
[1724958036677,6.1e-07,2520.2,2520.1,56.35605]
[1724958037371,6.1e-07,2520.2,2520.1,48.37251]
[1724958037573,6.1e-07,2520.2,2520.1,54.37251]
[1724958038978,6.1e-07,2520.2,2520.1,55.36428]
[1724958039170,3.966,2521.9,2521.8,0.39644]
[1724958039478,2.212,2522.1,2522.0,0.39641]
[1724958039881,6.1768,2522.1,2522.0,41.19641]
[1724958040092,6.1768,2522.1,2522.0,40.8]
[1724958040280,2.212,2522.1,2522.0,41.19641]
[1724958040476,2.212,2522.1,2521.8,0.00595061]
[1724958040477,0.39642,2522.0,2521.8,0.00595061]
[1724958040676,3.9648,2522.0,2521.8,0.00595061]
[1724958040876,5.4198,2522.1,2522.0,0.39641]
[1724958041283,0.00595061,2522.3,2522.2,0.39638]
[1724958041490,6.1e-07,2522.3,2522.2,47.19638]
[1724958041780,6.1e-07,2522.3,2522.2,51.16118]
[1724958041984,6.1e-07,2522.3,2522.2,45.16118]
[1724958042189,6.1e-07,2522.3,2522.2,51.16118]
[1724958042374,6.1e-07,2522.3,2522.2,45.16118]
[1724958042973,6.1e-07,2522.3,2522.2,40.8]
[1724958043875,3.96480061,2522.3,2522.0,3.2078]
[1724958044183,6.2376,2522.2,2521.8,0.00595061]
[1724958044482,4.41600221,2522.1,2521.8,0.00595061]
[1724958044683,4.19886,2522.0,2520.6,7.9678]
[1724958044981,3.2078,2521.6,2520.6,3.2078]
[1724958045183,2.1873,2521.5,2520.9,3.2078]
[1724958045584,0.09832182,2521.4,2520.9,3.21375]
[1724958045884,0.09832182,2521.4,2520.9,3.61032]
[1724958046086,0.09832182,2521.4,2521.2,0.39653]
[1724958046285,0.39653,2521.3,2520.9,3.21375]
[1724958046679,4.06472182,2521.4,2520.9,3.21375]
[1724958046680,0.09832182,2521.4,2520.9,3.21375]
[1724958046883,4.57205462,2521.2,2520.9,0.00595]
[1724958047077,0.39656,2521.0,2520.9,0.00595]
[1724958047382,0.39656,2521.0,2520.1,3.2078]
[1724958047383,3.9664,2521.0,2520.1,3.2078]
[1724958047596,3.9664,2521.0,2520.1,3.6045]
[1724958047597,0.39662,2520.7,2520.1,3.6045]
[1724958047792,3.2078,2520.8,2520.1,3.2078]
[1724958048093,4.28352376,2520.6,2520.1,44.0078]
[1724958048394,0.00595061,2520.6,2520.2,0.39669]
[1724958048692,0.00595061,2520.6,2520.1,44.0078]
[1724958049076,0.00595061,2520.6,2519.4,2.1668]
[1724958049077,4.20284265,2520.5,2520.0,0.39671]
[1724958049276,4.20284265,2520.5,2519.4,3.2078]
[1724958049277,0.39668,2520.3,2519.4,3.2078]
[1724958049486,2.1901,2520.4,2519.9,0.39673]
[1724958049686,2.1901,2520.4,2519.5,40.8]
[1724958049889,4.4378833,2520.3,2519.5,40.8]
[1724958050188,3.2078,2520.2,2519.5,40.8]
[1724958050385,3.2078,2520.2,2519.1,3.2078]
[1724958050585,3.2078,2520.2,2519.9,0.39673]
[1724958050779,3.2078,2520.2,2519.9,0.39674]
[1724958050995,3.968,2520.1,2519.4,40.8]
[1724958051295,3.2078,2520.2,2519.7,0.39676]
[1724958051684,4.36471,2520.1,2519.5,0.39679]
[1724958051887,4.53909627,2520.1,2519.0,3.2078]
[1724958052187,0.39672,2520.0,2519.4,0.39681]
[1724958052588,4.53909627,2519.9,2519.5,0.3968]
[1724958052787,4.53909627,2519.9,2519.1,40.8]
[1724958052788,4.53909627,2519.9,2519.4,0.39681]
[1724958053088,4.53909627,2519.9,2519.5,0.39679]
[1724958053299,4.93583627,2519.9,2519.1,40.8]
[1724958053596,0.39673,2520.0,2519.1,40.8]
[1724958054087,4.27867239,2519.8,2519.1,40.8]
[1724958054290,4.27867239,2519.9,2519.1,40.8]
[1724958054595,4.27867239,2520.0,2519.9,0.39674]
[1724958054893,3.2078,2520.2,2519.9,0.39674]
[1724958055099,7.1758,2520.2,2519.9,0.39674]
[1724958055283,7.1758,2520.2,2519.8,0.39674]
[1724958055479,3.2078,2520.2,2519.4,3.2078]
[1724958056096,3.2078,2520.2,2519.7,0.39676]
[1724958056390,3.2078,2519.9,2519.7,0.39676]
[1724958056692,4.24423068,2519.8,2519.6,0.39677]
[1724958056890,4.24423068,2519.8,2519.7,0.39677]
[1724958057087,3.2078,2519.9,2519.7,0.39677]
[1724958057287,7.1766,2519.9,2519.7,0.39677]
[1724958057489,7.1766,2519.9,2519.4,3.2078]